bitfinex/quotes_ETHUSD_20260130
["timestamp","ask_amount","ask_price","bid_price","bid_amount"]
[1769735927760,8.87160905,2808.0,2806.3,7.25871472]
[1769735927939,8.87160905,2808.0,2806.3,7.98458619]
[1769735927940,7.23528451,2807.6,2806.3,7.98458619]
[1769735928151,7.23528451,2807.6,2806.3,8.87542519]
[1769735929988,8.12575646,2807.5,2806.3,7.25871472]
[1769735930164,0.89047195,2807.5,2806.3,8.14953832]
[1769735930337,3.56164648,2807.7,2806.3,8.14953832]
[1769735930338,0.89042133,2807.7,2806.3,8.14953832]
[1769735930536,1.63642133,2807.7,2806.3,8.14953832]
[1769735930868,7.23528451,2808.6,2806.5,7.25871472]
[1769735931074,0.746,2808.8,2806.4,1.59771895]
[1769735931297,0.88997407,2809.1,2807.0,7.32977277]
[1769735931448,8.12522902,2809.2,2807.3,7.25871472]
[1769735931780,8.31478953,2809.1,2807.3,7.25871472]
[1769735932103,1.07950502,2809.1,2807.3,7.25871472]
[1769735932321,0.8486254,2810.2,2808.2,7.25871472]
[1769735932449,0.8486254,2810.2,2808.4,7.25871472]
[1769735932645,0.8486254,2810.2,2808.6,7.25871472]
[1769735933007,0.8486254,2810.2,2808.8,7.25871472]
[1769735933400,8.97353232,2810.2,2808.7,2.68902989]
[1769735933572,0.002,2809.5,2808.5,7.25871472]
[1769735934387,0.002,2809.5,2808.6,8.14883791]
[1769735936988,0.88967971,2810.0,2808.7,6.80390175]
[1769735937287,0.001,2810.3,2808.7,6.80390175]
[1769735937655,0.001,2809.3,2808.7,6.80390175]
[1769735937852,0.001,2810.3,2808.9,6.80390175]
[1769735938052,0.002,2809.5,2808.9,6.80390175]
[1769735938479,0.002,2809.5,2809.1,6.80390175]
[1769735940903,0.002,2809.5,2809.2,0.88993307]
[1769735941194,0.002,2809.5,2808.4,0.88950059]
[1769735941195,7.11729702,2809.5,2808.4,0.88950059]
[1769735941492,7.11529702,2809.3,2808.4,0.88950059]
[1769735941649,7.11529702,2809.3,2808.2,0.89022915]
[1769735941856,7.11529702,2809.3,2808.0,0.89031068]
[1769735942079,7.11529702,2809.3,2807.9,0.89032744]
[1769735942285,7.11529702,2809.1,2807.9,1.33551065]
[1769735942486,7.11529702,2809.1,2807.9,0.44518321]
[1769735942817,0.002,2809.5,2808.7,0.89007617]
[1769735943010,0.002,2809.5,2808.5,6.80390175]
[1769735943161,0.002,2809.5,2808.6,1.0364645]
[1769735943556,7.11729702,2809.5,2808.2,0.8902318]
[1769735944299,0.002,2809.5,2808.2,7.69413355]
[1769735945305,7.11529702,2810.2,2808.3,6.80390175]
[1769735945514,7.11529702,2810.2,2808.2,0.8902318]
[1769735945803,0.002,2809.5,2808.2,0.8902318]
[1769735945959,7.11729702,2809.5,2808.3,0.44512569]
[1769735946593,7.11729702,2809.5,2808.0,0.890292]
[1769735946955,7.11529702,2809.3,2807.9,3.56136401]
[1769735947192,7.11529702,2809.3,2807.9,0.89034509]
[1769735947964,7.11529702,2809.3,2808.9,0.001]
[1769735948179,7.11529702,2809.3,2807.9,0.89034509]
[1769735948390,0.88986972,2809.4,2807.9,1.33552764]
[1769735948391,7.11529702,2809.1,2807.9,1.33552764]
[1769735948557,7.11429702,2809.1,2807.9,1.33552764]
[1769735949185,0.88999644,2809.0,2807.9,1.33552764]
[1769735949569,0.88899644,2809.0,2807.9,1.33552764]
[1769735950102,0.88799644,2809.0,2807.9,1.33552764]
[1769735950299,1.69045959,2809.2,2807.9,8.13942939]
[1769735950599,8.00507172,2809.7,2809.2,0.001]
[1769735950910,0.8897747,2809.7,2809.2,0.001]
[1769735951200,0.002,2809.8,2809.2,0.001]
[1769735961503,7.11729702,2809.8,2809.2,0.001]
[1769735961705,7.82702672,2809.7,2809.2,0.001]
[1769735963315,0.001,2809.6,2809.2,0.001]
[1769735963697,0.002,2809.3,2808.7,6.80490175]
[1769735964922,0.002,2809.3,2808.8,0.89005981]
[1769735965134,0.001,2809.6,2808.9,6.80390175]
[1769735965299,0.001,2809.6,2809.1,6.80390175]
[1769735965699,0.002,2809.3,2809.1,6.80390175]
[1769735966326,0.001,2809.6,2809.1,6.80390175]
[1769735967329,0.002,2809.3,2809.2,0.88993307]
[1769735967530,0.001,2809.6,2809.2,0.88993307]
[1769735967720,0.001,2809.6,2809.2,2.09224062]
[1769735967920,0.001,2809.6,2809.2,0.88993307]
[1769735968121,0.002,2809.3,2809.2,0.88993307]
[1769735969336,0.002,2809.3,2809.1,0.88996475]
[1769735969547,0.002,2809.3,2808.9,0.89001172]
[1769735969752,0.002,2809.3,2808.8,0.89003656]
[1769735970238,0.002,2809.3,2808.7,3.56136024]
[1769735970408,0.002,2809.3,2808.9,0.89000375]
[1769735972037,0.002,2809.3,2808.8,1.24618275]
[1769735972238,0.002,2809.3,2808.8,0.89004673]
[1769735972540,6.93984895,2809.3,2808.7,0.001]
[1769735972729,0.002,2809.3,2808.8,0.89005954]
[1769735973329,0.001,2809.6,2808.8,8.850495]
[1769735974237,0.002,2809.3,2808.8,8.850495]
[1769735974627,0.002,2809.3,2808.9,0.002]
[1769735976627,0.001,2809.6,2808.9,7.57782402]
[1769735976827,0.001,2809.6,2809.0,0.89130303]
[1769735977227,0.002,2809.3,2808.9,0.002]
[1769735977408,0.002,2809.3,2808.9,7.57782402]
[1769735977718,0.002,2809.3,2808.9,0.002]
[1769735978839,0.003,2809.6,2809.0,0.001]
[1769735979041,7.19728074,2809.6,2809.0,0.001]
[1769735979220,0.003,2809.6,2809.0,0.001]
[1769735982049,7.19428074,2809.5,2809.0,0.001]
[1769735984135,0.88961639,2810.2,2809.1,7.57582402]
[1769735984329,7.19428074,2810.1,2809.0,0.001]
[1769735984524,8.08399211,2809.9,2809.0,0.001]
[1769735984833,7.19628074,2809.6,2809.0,0.001]
[1769735985145,0.002,2809.6,2809.0,0.001]
[1769735985324,7.19628074,2809.6,2809.0,0.001]
[1769735987125,7.19628074,2809.6,2809.1,0.002]
[1769735987331,0.002,2809.6,2809.1,0.002]
[1769735987543,0.001,2809.3,2809.1,0.002]
[1769735988220,0.001,2809.3,2808.6,0.002]
[1769735988551,0.001,2809.3,2808.6,0.89211793]
[1769735988752,0.001,2809.3,2808.6,1.33759139]
[1769735988956,0.001,2809.3,2809.0,0.001]
[1769735989316,7.19528074,2809.3,2808.6,1.33759139]
[1769735989836,7.19528074,2809.3,2809.0,0.001]
[1769735990546,0.001,2809.3,2809.0,0.001]
[1769735993925,0.003,2809.3,2808.7,0.001]
[1769735994433,0.003,2809.3,2808.7,1.20415479]
[1769735995938,0.003,2809.3,2808.7,0.001]
[1769736000074,0.003,2809.3,2808.9,0.002]
[1769736000373,0.001,2809.1,2808.9,0.002]
[1769736001471,0.003,2809.3,2808.9,0.002]
[1769736003180,0.88969605,2810.0,2809.0,7.16761712]
[1769736003346,0.88969605,2810.0,2809.1,7.88457883]
[1769736003778,0.002,2809.3,2809.1,7.88457883]
[1769736003978,0.002,2809.3,2809.1,0.71696171]
[1769736004168,0.002,2809.3,2808.9,0.002]
[1769736005982,0.002,2809.3,2808.9,7.16961712]
[1769736006358,0.002,2809.3,2809.0,0.88999644]
[1769736006555,7.51018837,2810.2,2809.0,8.05761356]
[1769736006872,3.5586682,2810.1,2809.0,8.05761356]
[1769736007075,3.5586682,2810.1,2809.2,7.16761712]
[1769736007273,0.002,2809.3,2809.2,7.16761712]
[1769736007479,3.38085033,2810.1,2809.2,7.16761712]
[1769736008280,0.002,2809.3,2809.2,7.16761712]
[1769736008661,0.002,2809.3,2809.2,8.05755019]
[1769736008979,3.38085033,2810.1,2809.2,9.33549281]
[1769736009150,3.38085033,2810.1,2809.2,8.44555974]
[1769736009345,3.38085033,2810.1,2809.8,0.002]
[1769736009752,10.8910387,2810.1,2809.2,1.27794262]
[1769736010384,10.8910387,2810.1,2809.8,0.002]
[1769736010582,12.42504483,2810.1,2809.8,0.002]
[1769736012286,10.8910387,2810.1,2809.8,0.002]
[1769736014359,10.8910387,2810.1,2809.2,1.27794262]
[1769736014952,10.8910387,2810.1,2809.8,0.002]
[1769736015688,3.38085033,2810.1,2809.8,0.002]
[1769736015890,3.5585122,2810.2,2809.8,0.002]
[1769736016871,0.89060938,2810.3,2809.8,0.002]
[1769736017084,0.89060938,2810.3,2809.8,0.71896171]
[1769736018172,0.88929994,2811.2,2809.9,7.16761712]
[1769736018373,3.55819977,2811.3,2809.9,7.16761712]
[1769736018374,0.89029056,2811.3,2809.9,7.16761712]
[1769736018768,0.001,2810.4,2810.1,7.16761712]
[1769736019096,0.001,2811.3,2810.3,7.16761712]
[1769736019297,0.001,2810.4,2810.3,7.16761712]
[1769736019493,0.001,2811.3,2810.3,7.16761712]
[1769736019897,0.001,2810.4,2810.3,7.16761712]
[1769736021706,0.001,2811.3,2810.4,7.16761712]
[1769736022013,0.001,2811.3,2810.3,0.88958474]
[1769736022014,0.001,2811.3,2810.6,7.16761712]
[1769736022373,0.001,2811.3,2810.6,7.16661712]
[1769736023165,0.001,2811.3,2810.6,7.16561712]
[1769736023472,7.51118837,2811.3,2810.3,2.22947608]
[1769736023801,0.001,2810.9,2810.3,2.23147608]
[1769736024585,0.001,2810.9,2810.3,10.28867769]
[1769736025203,0.001,2810.9,2810.4,7.16761712]
[1769736025407,0.001,2811.3,2810.4,7.16761712]
[1769736025893,0.001,2810.9,2810.6,7.60312169]
[1769736026088,0.001,2810.9,2810.7,8.452386]
[1769736026405,0.001,2810.9,2810.7,0.84926431]
[1769736026569,0.001,2810.9,2810.5,8.49264312]
[1769736028269,0.001,2810.9,2810.5,8.49263989]
[1769736029670,0.001,2810.9,2810.5,7.60312169]
[1769736030006,0.001,2810.9,2810.3,5.78977601]
[1769736030007,0.001,2810.9,2810.3,2.23147608]
[1769736031479,7.44025088,2810.9,2810.3,2.23147608]
[1769736031693,7.43925088,2810.7,2809.4,7.60312169]
[1769736031907,0.88948978,2810.6,2809.5,8.49295646]
[1769736032294,8.32874066,2810.6,2810.3,0.002]
[1769736032813,8.32874066,2810.6,2809.3,8.49300339]
[1769736032980,8.62792086,2810.5,2809.4,0.9770946]
[1769736033513,8.62792086,2810.5,2810.3,0.001]
[1769736033896,0.88955308,2810.4,2810.3,0.001]
[1769736034110,0.88955308,2810.4,2809.4,8.58021629]
[1769736034407,0.88955308,2810.4,2809.4,8.5782244]
[1769736034712,2.55293146,2810.4,2809.5,0.94681061]
[1769736034907,2.55293146,2810.4,2810.3,0.001]
[1769736035213,2.55293146,2810.4,2809.4,7.60112777]
[1769736035824,2.55293146,2810.4,2810.3,0.004]
[1769736035994,2.55293146,2810.4,2810.3,0.0015]
[1769736036215,2.55293146,2810.4,2809.4,7.59913994]
[1769736036387,10.23095206,2810.4,2810.3,0.001]
[1769736036594,10.23095206,2810.4,2809.4,7.59814602]
[1769736036809,10.23095206,2810.4,2810.3,0.001]
[1769736037107,10.23095206,2810.4,2809.4,7.59814602]
[1769736038305,10.23095206,2810.4,2810.3,0.001]
[1769736038903,10.23095206,2810.4,2809.2,8.93769589]
[1769736038904,7.6780206,2810.3,2809.2,8.93769589]
[1769736039225,9.05692556,2810.3,2809.3,8.94175241]
[1769736039377,9.05692556,2810.3,2810.0,0.001]
[1769736039578,9.05692556,2810.3,2809.3,8.04778282]
[1769736039789,9.05692556,2810.3,2810.0,0.002]
[1769736040118,8.56763699,2810.2,2809.1,8.04978282]
[1769736040299,7.6780206,2810.0,2809.1,0.002]
[1769736040910,7.6760206,2810.0,2809.1,0.002]
[1769736042580,7.6780206,2809.8,2809.1,0.002]
[1769736043335,7.6780206,2809.8,2808.9,1.88274694]
[1769736043614,7.6780206,2809.6,2808.6,0.002]
[1769736045241,0.88983804,2809.5,2808.6,0.002]
[1769736045441,8.56785864,2809.5,2808.6,0.002]
[1769736047337,8.56785864,2809.5,2808.5,1e-08]
[1769736047920,8.56785864,2809.5,2808.8,0.001]
[1769736048124,7.6780206,2809.3,2808.5,1e-08]
[1769736049159,7.6780206,2809.3,2808.3,0.002]
[1769736049725,8.56798535,2809.1,2808.3,0.002]
[1769736051065,8.56798535,2809.1,2808.3,0.001]
[1769736051358,8.56798535,2809.1,2807.7,0.002]
[1769736051359,7.6780206,2808.9,2807.7,0.002]
[1769736051563,7.6780206,2808.7,2807.1,0.002]
[1769736051729,7.6780206,2808.5,2807.1,0.002]
[1769736051934,7.6780206,2808.3,2807.1,0.002]
[1769736052329,7.6780206,2808.3,2806.8,0.002]
[1769736052530,7.6780206,2808.3,2806.8,7.35305118]
[1769736052728,8.4240206,2808.2,2806.8,7.35305118]
[1769736053974,7.6780206,2808.0,2806.8,0.002]
[1769736054142,8.9655635,2808.0,2806.8,0.75378219]
[1769736056556,8.45805669,2807.8,2806.8,0.75378219]
[1769736056865,8.45805669,2807.8,2806.8,0.002]
[1769736058647,8.45805669,2807.6,2806.8,0.001]
[1769736058855,8.45805669,2807.6,2806.5,6.08e-06]
[1769736059558,8.45805669,2807.6,2807.0,0.001]
[1769736059757,8.45805669,2807.6,2806.0,7.9106197]
[1769736059954,8.45805669,2807.4,2806.1,0.88015824]
[1769736060134,8.45805669,2807.2,2806.1,0.88015824]
[1769736060539,8.45805669,2807.0,2805.7,8.92729184]
[1769736060861,8.45805669,2807.0,2805.6,0.89305485]
[1769736061067,8.45805669,2807.0,2805.7,0.89104245]
[1769736061363,8.45805669,2807.0,2805.6,0.002]
[1769736061877,8.45805669,2806.8,2805.6,0.002]
[1769736062084,0.89059883,2807.1,2806.1,8.9271636]
[1769736062740,0.89059883,2807.1,2806.1,8.03626395]
[1769736063271,9.34865552,2807.1,2806.1,8.92717773]
[1769736063845,9.34865552,2807.1,2806.1,0.89091455]
[1769736064395,9.34865552,2807.1,2806.0,0.8909385]
[1769736064554,9.34865552,2807.1,2806.1,0.89272025]
[1769736066472,9.34865552,2807.1,2805.8,0.89099003]
[1769736066769,9.34865552,2807.1,2805.9,0.89097805]
[1769736066951,9.34865552,2807.1,2806.0,0.89094561]
[1769736067682,9.34865552,2807.1,2805.8,8.9272566]
[1769736068908,0.89059883,2807.1,2805.8,8.9272566]
[1769736069042,0.89059831,2807.2,2806.0,8.03626395]
[1769736069661,0.89053538,2807.3,2806.2,8.03626395]
[1769736070099,9.34859207,2807.3,2806.2,8.03626395]
[1769736070259,9.34859207,2807.3,2806.0,0.8909303]
[1769736070580,8.45805669,2807.1,2806.0,8.92719425]
[1769736071143,8.45805669,2807.1,2805.9,0.89096449]
[1769736071766,9.34868725,2807.0,2805.8,8.92725864]
[1769736072142,9.34868725,2807.0,2806.0,0.002]
[1769736072342,8.45805669,2806.8,2806.0,0.002]
[1769736074344,9.34878245,2806.7,2806.0,0.002]
[1769736077879,9.34878245,2806.7,2805.8,0.002]
[1769736078693,9.34878245,2806.7,2805.6,0.002]
[1769736079485,8.45805669,2806.5,2805.6,0.002]
[1769736079645,1.66750567,2806.4,2805.6,8.03826395]
[1769736079850,9.20505669,2806.5,2805.6,8.03826395]
[1769736080085,9.20505669,2806.5,2805.6,0.002]
[1769736081899,8.45805669,2806.3,2805.6,0.002]
[1769736082551,0.89082098,2806.4,2805.6,0.002]
[1769736082752,3.56328392,2806.5,2805.6,0.002]
[1769736082753,0.8908092,2806.5,2805.6,8.03826395]
[1769736082962,9.34886589,2806.5,2805.7,0.8038264]
[1769736083160,9.34886589,2806.5,2805.6,0.002]
[1769736085152,9.34886589,2806.5,2805.4,0.002]
[1769736085153,9.34886589,2806.5,2805.4,6.08e-06]
[1769736085895,9.34886589,2806.5,2805.8,0.001]
[1769736086096,9.33025507,2806.2,2804.9,0.89030709]
[1769736086297,9.33025507,2806.2,2805.5,0.002]
[1769736087460,9.33025507,2806.0,2804.6,0.002]
[1769736087671,9.33025507,2805.8,2804.7,2.15547337]
[1769736088271,10.2212983,2805.7,2804.7,2.15547337]
[1769736088579,10.2212983,2805.7,2804.7,2.15548927]
[1769736089588,10.2212983,2805.7,2804.7,11.22915354]
[1769736090776,10.2212983,2805.7,2804.7,10.33779825]
[1769736091059,10.70880219,2805.6,2804.6,0.002]
[1769736092461,10.70880219,2805.6,2804.4,0.002]
[1769736092887,9.33025507,2805.4,2804.4,0.002]
[1769736094471,10.07725507,2805.4,2804.4,0.002]
[1769736094790,11.40681443,2805.5,2804.4,9.07566427]
[1769736094977,11.40681443,2805.5,2804.4,9.96711331]
[1769736095288,11.40681443,2805.5,2804.4,0.89345607]
[1769736095458,10.65981443,2805.5,2804.4,10.13871633]
[1769736095663,11.40681443,2805.5,2804.4,10.13871633]
[1769736095865,1.63497886,2805.4,2804.4,11.50917613]
[1769736096500,11.40368654,2805.4,2804.4,11.50917613]
[1769736096863,0.89117028,2805.3,2804.4,11.50917613]
[1769736098391,10.65987796,2805.3,2804.6,0.002]
[1769736098566,10.65987796,2805.3,2804.2,0.89149245]
[1769736098768,10.65987796,2805.3,2804.3,0.89148516]
[1769736099189,11.5560346,2805.2,2804.1,12.81143861]
[1769736099393,1.78732692,2805.1,2804.2,0.89151986]
[1769736099604,1.15560346,2805.0,2804.3,9.24526026]
[1769736099776,1.78732692,2804.9,2804.3,9.24526026]
[1769736100471,1.78732692,2804.9,2804.3,7.45793334]
[1769736101072,1.78732692,2804.9,2803.7,3.57811241]
[1769736101073,11.5560346,2804.9,2803.9,8.78745427]
[1769736101279,12.08989837,2804.8,2803.9,0.8916133]
[1769736101474,1.5655215,2804.7,2803.9,9.67906757]
[1769736101898,2.32119069,2804.8,2803.9,9.67906757]
[1769736103001,12.08989837,2804.8,2803.9,8.78745427]
[1769736103294,12.08989837,2804.8,2803.7,0.0115008]
[1769736103473,12.83689837,2804.8,2803.7,9.72824676]
[1769736103674,12.83689837,2804.8,2803.7,9.72827106]
[1769736103675,11.40892918,2804.7,2803.7,9.72827106]
[1769736103902,11.40892918,2804.7,2803.7,0.0115008]
[1769736104676,11.40892918,2804.7,2803.2,0.002]
[1769736105300,9.76870768,2804.5,2803.2,0.002]
[1769736105474,9.76870768,2804.1,2802.2,0.89213762]
[1769736105673,0.1024,2804.2,2802.1,8.88582304]
[1769736105674,9.76870768,2803.9,2802.1,9.77799116]
[1769736105886,9.76870768,2803.9,2802.3,0.89211848]
[1769736106064,9.76870768,2803.9,2802.2,0.89213574]
[1769736106270,9.76870768,2803.7,2802.3,0.44608553]
[1769736106482,9.76870768,2803.5,2802.2,0.89215268]
[1769736106699,9.76870768,2803.3,2802.3,0.89211929]
[1769736106999,1.42970154,2803.4,2801.9,8.89953751]
[1769736107000,10.51570768,2803.9,2802.6,9.81561325]
[1769736107308,11.16818761,2803.8,2802.6,0.89202349]
[1769736107479,9.76870768,2803.6,2802.6,0.89202349]
[1769736107679,9.76870768,2803.4,2802.5,0.89203872]
[1769736107886,10.27654056,2803.3,2802.5,0.4460515]
[1769736108086,10.27654056,2803.2,2801.3,6.65569166]
[1769736108297,9.76870768,2803.0,2801.6,3.56929483]
[1769736108510,9.76870768,2802.8,2801.8,0.89226641]
[1769736108727,9.76870768,2801.5,2798.2,1.07137117]
[1769736108913,9.76870768,2801.0,2798.3,9.24526026]
[1769736109115,9.76870768,2800.6,2798.5,0.89331743]
[1769736109411,9.76870768,2800.6,2798.4,1.03166314]
[1769736109412,9.76870768,2800.0,2798.4,0.98166314]
[1769736109576,9.76870768,2799.8,2798.4,0.98166314]
[1769736109776,9.76870768,2799.8,2798.0,3.59355091]
[1769736109777,9.83976573,2799.2,2798.1,0.89343409]
[1769736109989,7.91969459,2800.3,2798.1,0.89343409]
[1769736109990,0.747,2800.0,2798.4,10.13862032]
[1769736110190,0.33966119,2800.3,2798.9,9.24526026]
[1769736110486,0.33966119,2800.3,2799.1,9.24526026]
[1769736111109,0.34589293,2800.5,2799.1,9.24526026]
[1769736111316,0.34589293,2800.5,2799.2,0.89311231]
[1769736111317,1.23859682,2800.5,2799.2,0.89311231]
[1769736111541,0.37795782,2800.4,2799.3,0.44655616]
[1769736113199,0.37795782,2800.4,2799.4,0.89304851]
[1769736113200,1.27069886,2800.4,2799.4,0.89304851]
[1769736113400,0.36985483,2800.3,2799.4,0.89304851]
[1769736116128,0.32003695,2800.7,2799.4,0.89304851]
[1769736116423,0.32003695,2800.7,2799.5,1.41571802]
[1769736117195,1.21267634,2800.7,2799.6,0.89298471]
[1769736117394,0.31751557,2800.6,2799.6,0.89298471]
[1769736117597,0.31751557,2800.6,2799.7,0.54485378]
[1769736118691,0.31751557,2800.6,2798.0,10.24539403]
[1769736118692,10.29021824,2799.9,2798.0,10.24539403]
[1769736118895,10.29021824,2799.7,2798.3,0.89339758]
[1769736119096,10.69905901,2799.6,2798.2,0.89342408]
[1769736119299,11.61356831,2799.5,2798.1,0.89346342]
[1769736119503,0.38292401,2799.4,2798.1,0.89346342]
[1769736119699,0.38292401,2799.4,2798.3,10.22581043]
[1769736119900,10.29021824,2800.3,2798.3,10.22581043]
[1769736119901,0.33548427,2799.6,2798.3,10.22581043]
[1769736120436,0.33548427,2799.6,2798.4,10.97381043]
[1769736121010,0.33548427,2799.6,2798.5,10.97381043]
[1769736121200,0.33548427,2799.6,2798.7,0.89327187]
[1769736121839,0.33548427,2799.6,2798.6,1.99067287]
[1769736122004,0.33548427,2799.6,2798.7,0.748]
[1769736122206,1.22847809,2799.6,2798.6,1.09738104]
[1769736122404,1.22847809,2799.6,2798.1,10.22581043]
[1769736122405,0.32047212,2799.5,2798.1,10.22581043]
[1769736122605,0.32047212,2799.5,2798.5,0.89332965]
[1769736122809,0.32047212,2799.5,2798.4,0.89534671]
[1769736123013,0.32047212,2799.5,2798.5,0.89332917]
[1769736123340,0.8061184,2799.5,2798.5,0.44689002]
[1769736123531,10.36127629,2800.2,2798.5,10.67270045]
[1769736123736,0.30508451,2799.6,2798.5,10.67270045]
[1769736124112,3.57091099,2800.5,2798.6,10.22581043]
[1769736124313,10.29021824,2800.1,2798.7,1.06727004]
[1769736124538,0.07105805,2799.7,2798.5,0.748]
[1769736124731,10.29021824,2800.1,2798.5,10.97381043]
[1769736125045,1.4753827,2800.4,2798.5,10.97381043]
[1769736125241,11.18291597,2800.5,2798.5,10.97381043]
[1769736125448,11.18291597,2800.5,2798.7,10.22581043]
[1769736127650,11.18291597,2800.5,2798.8,0.89323995]
[1769736128149,11.18291597,2800.5,2798.8,11.11905038]
[1769736128446,10.29021824,2800.5,2798.8,11.11905038]
[1769736128632,11.77267047,2800.5,2798.9,11.69501145]
[1769736128838,12.66537007,2800.5,2798.9,11.69501145]
[1769736129032,11.77267047,2800.5,2798.9,11.69501145]
[1769736129436,12.66538505,2800.5,2798.9,11.69501145]
[1769736129638,12.66538505,2800.5,2799.0,1.64117613]
[1769736129951,11.92094164,2800.4,2799.1,0.66830817]
[1769736130349,11.92094164,2800.4,2799.2,0.748]
[1769736130555,11.92094164,2800.4,2799.1,0.66830817]
[1769736130751,11.92094164,2800.4,2799.3,0.748]
[1769736131643,0.89276148,2800.3,2799.4,0.89304851]
[1769736131822,12.81369529,2800.4,2799.4,1.41437605]
[1769736133536,0.002,2799.9,2799.5,0.748]
[1769736134069,0.002,2799.9,2799.6,0.89298471]
[1769736134262,0.002,2799.9,2799.6,0.748]
[1769736134473,1.6307234,2800.4,2799.6,0.748]
[1769736134686,10.29021824,2800.7,2799.6,1.26931482]
[1769736134827,0.8924589,2801.3,2799.6,11.49512525]
[1769736135156,11.40848595,2801.2,2799.8,10.22581043]
[1769736136028,0.001,2800.3,2799.8,10.22581043]
[1769736136229,11.40848595,2801.2,2799.9,0.89288903]
[1769736136441,11.40848595,2801.2,2799.9,11.11869946]
[1769736136943,12.30096362,2801.2,2799.9,11.11869946]
[1769736137145,12.30096362,2801.2,2800.0,1.11347053]
[1769736137346,12.30096362,2801.2,2800.0,0.36547053]
[1769736137658,12.30096362,2801.2,2800.1,0.748]
[1769736138028,12.30096362,2801.2,2800.2,0.748]
[1769736139551,12.30096362,2801.2,2800.3,0.89276148]
[1769736139751,11.40848595,2801.2,2800.3,1.41394222]
[1769736141166,1.11826771,2801.2,2800.3,1.41394222]
[1769736141371,0.89246273,2801.3,2800.3,1.41394222]
[1769736141538,0.89243025,2801.4,2800.5,0.89269773]
[1769736141733,10.29021824,2801.5,2800.5,0.89269773]
[1769736141968,0.89233879,2801.7,2800.5,11.11850816]
[1769736142164,2.36751992,2801.7,2800.6,0.66844225]
[1769736142570,1.47518113,2801.7,2800.6,0.66844225]
[1769736143257,1.47518113,2801.7,2800.6,10.89425268]
[1769736143431,10.29021824,2802.1,2800.6,10.89425268]
[1769736143636,11.1824135,2802.1,2800.7,11.11844441]
[1769736143939,11.1824135,2802.1,2800.8,0.748]
[1769736145404,11.1824135,2802.1,2800.9,0.748]
[1769736145591,1.47510888,2802.0,2800.9,0.748]
[1769736145902,0.89225168,2801.9,2801.0,0.89253837]
[1769736146612,12.9050629,2802.0,2801.0,0.89253837]
[1769736147287,12.9050629,2802.0,2800.6,0.748]
[1769736147288,10.53772516,2801.9,2800.6,0.748]
[1769736147488,10.53772516,2801.7,2800.6,0.748]
[1769736147695,10.53772516,2801.7,2800.7,0.89261503]
[1769736147899,11.43007239,2801.6,2800.6,0.748]
[1769736148394,11.43007239,2801.6,2800.5,0.748]
[1769736148583,10.53772516,2801.4,2800.5,0.748]
[1769736148986,1.49994613,2801.5,2800.5,0.748]
[1769736149492,1.49994613,2801.5,2800.6,0.748]
[1769736149995,1.49994613,2801.5,2800.7,0.89263398]
[1769736150896,11.430051,2801.7,2800.7,0.89263398]
[1769736151968,2.24119534,2801.8,2800.7,0.89263398]
[1769736152169,0.89230028,2801.8,2800.8,0.748]
[1769736152476,11.43100085,2801.9,2800.8,0.748]
[1769736153406,11.43097738,2801.9,2800.8,0.748]
[1769736154586,0.8932522,2801.9,2800.9,0.89257024]
[1769736154778,0.8932522,2801.9,2800.9,1.41365536]
[1769736154779,0.001,2801.9,2800.9,1.41365536]
[1769736154981,0.89325606,2801.9,2800.9,1.41365536]
[1769736155418,11.36908693,2801.9,2801.0,0.748]
[1769736156211,0.89325704,2801.9,2801.0,0.748]
[1769736156406,0.89325329,2801.9,2801.0,0.748]
[1769736156618,0.001,2801.9,2801.1,0.89250651]
[1769736156813,10.47583087,2801.8,2800.9,0.52108512]
[1769736157108,10.47583087,2801.8,2800.8,0.89258774]
[1769736157497,10.47583087,2801.8,2800.6,0.748]
[1769736157813,10.47583087,2801.8,2800.7,0.89262858]
[1769736158112,10.47583087,2801.6,2800.7,0.89262858]
[1769736158286,10.47583087,2801.6,2800.8,0.89259887]
[1769736158687,11.36820082,2801.6,2800.7,3.57052292]
[1769736159016,0.002,2801.1,2800.7,3.57052292]
[1769736159606,10.47583087,2801.6,2800.7,3.57052292]
[1769736159806,11.73245199,2801.6,2800.7,4.44881268]
[1769736160117,0.002,2801.1,2800.7,4.44881268]
[1769736160283,0.001,2801.7,2800.7,4.44881268]
[1769736161213,0.002,2801.1,2800.6,0.89264115]
[1769736161387,0.002,2801.1,2800.7,0.89262523]
[1769736162835,0.002,2801.1,2800.8,0.748]
[1769736163731,0.002,2801.1,2800.8,1.64058047]
[1769736164307,0.002,2801.1,2800.8,0.748]
[1769736164899,0.002,2801.1,2800.5,3.57175867]
[1769736165087,0.002,2801.1,2800.7,0.89263344]
[1769736166119,0.002,2801.1,2800.7,0.89261562]
[1769736167019,0.002,2801.1,2800.6,4.67583243]
[1769736167020,0.002,2801.1,2800.8,0.748]
[1769736167615,0.002,2801.1,2800.6,1.24982126]
[1769736167821,0.002,2801.1,2800.7,0.748]
[1769736168823,10.47783087,2801.1,2799.6,3.57187553]
[1769736169165,10.47783087,2801.1,2799.7,3.0262395]
[1769736169437,10.47783087,2801.1,2799.8,0.89291567]
[1769736169727,10.47783087,2801.1,2800.5,0.001]
[1769736170089,10.47783087,2801.1,2799.6,0.89298339]
[1769736170287,10.47783087,2801.1,2799.7,0.748]
[1769736170743,10.47783087,2801.1,2798.9,0.002]
[1769736171041,10.47583087,2800.7,2799.0,1.07442047]
[1769736171341,10.47583087,2800.7,2798.9,0.89520804]
[1769736171342,10.47583087,2800.0,2798.6,0.002]
[1769736171538,10.47483087,2800.0,2798.6,0.002]
[1769736171832,10.47483087,2800.0,2798.1,0.002]
[1769736171833,10.47583087,2799.5,2798.1,0.002]
[1769736172034,10.47483087,2799.3,2798.1,0.002]
[1769736172662,10.47483087,2799.3,2796.2,5.49133269]
[1769736172663,8.14644388,2796.8,2793.2,10.74220471]
[1769736172801,0.07105805,2796.0,2793.6,10.74220471]
[1769736173000,0.07105805,2796.0,2793.9,10.74220471]
[1769736173195,10.70940117,2796.2,2793.9,10.74220471]
[1769736173503,10.47583087,2795.8,2794.0,2.17622047]
[1769736173700,10.47583087,2795.8,2794.0,1.97028061]
[1769736174102,0.1024,2796.2,2793.8,0.89483769]
[1769736174103,0.002,2794.2,2793.8,0.89483555]
[1769736174315,10.47583087,2795.3,2794.2,0.002]